[Event "Reykjavik Open 2025"]
[Site "Reykjavik"]
[Date "2025.04.11"]
[Round "4.14"]
[White "Haug, Havard"]
[Black "Draskovic, Luka"]
[Result "1/2-1/2"]
[Annotator "ChessBase"]
[ECO "B38"]
[WhiteElo "2339"]
[BlackElo "2488"]
[PlyCount "62"]
[EventDate "2025.04.09"]
[EventType "swiss"]
[EventCountry "ISL"]
[SourceTitle "playchess.com"]
[Source "ChessBase"]
[SourceQuality "1"]
[TimeControl "40/5400+30:1800+30"]

1. e4 {[%emt 0:00:05]} c5 {[%emt 0:00:07]} 2. Nf3 {[%emt 0:00:04]} Nc6 {[%emt 0:00:08]} 3. d4 {[%emt 0:00:26]} cxd4 {[%emt 0:00:08]} 4. Nxd4 {[%emt 0:00:04]} g6 {[%emt 0:14:31]} 5. c4 {[%emt 0:09:05]} Bg7 {[%emt 0:05:04]} 6. Be3 {[%emt 0:00:19]} Qb6 {[%emt 0:00:05]} 7. Nb3 {[%emt 0:01:06]} Qd8 {[%emt 0:01:41]} 8. Nd4 {[%emt 0:00:23]} Nf6 {[%emt 0:02:02]} 9. Nc3 {[%emt 0:01:03]} O-O {[%emt 0:00:41]} 10. Be2 {[%emt 0:01:36]} d6 {[%emt 0:01:34]} 11. O-O {[%emt 0:07:06]} Bd7 {[%emt 0:04:03]} 12. Qd2 {[%emt 0:03:39]} Nxd4 {[%emt 0:00:15]} 13. Bxd4 {[%emt 0:00:15]} Bc6 {[%emt 0:00:05]} 14. f3 {[%emt 0:03:31]} Nd7 {[%emt 0:00:38]} 15. Be3 {[%emt 0:05:20]} a5 {[%emt 0:00:09]} 16. Rfd1 {[%emt 0:08:20]} Nc5 {[%emt 0:14:14]} 17. Rab1 {[%emt 0:13:13]} Qb6 {[%emt 0:05:39]} 18. b3 {[%emt 0:05:25]} Qb4 {[%emt 0:11:13]} 19. Nd5 {[%emt 0:13:15]} Bxd5 {[%emt 0:00:51]} 20. cxd5 {[%emt 0:03:04]} Rfc8 {[%emt 0:02:16]} 21. a4 {[%emt 0:02:43]} Qa3 {[%emt 0:11:06]} 22. Bd4 {[%emt 0:09:15]} Bxd4+ {[%emt 0:06:58]} 23. Qxd4 {[%emt 0:00:11]} Na6 {[%emt 0:04:21]} 24. Bc4 {[%emt 0:03:00]} Qc5 {[%emt 0:01:49]} 25. Bxa6 {[%emt 0:01:49]} Rxa6 {[%emt 0:06:03]} 26. Qxc5 {[%emt 0:01:17]} Rxc5 {[%emt 0:00:05]} 27. Rbc1 {[%emt 0:00:10]} Rxc1 {[%emt 0:01:11]} 28. Rxc1 {[%emt 0:00:08]} Rb6 {[%emt 0:00:02]} 29. Rc3 {[%emt 0:00:12]} f5 {[%emt 0:00:52]} 30. exf5 {[%emt 0:02:12]} gxf5 {[%emt 0:00:02]} 31. Kf2 {[%emt 0:00:48]} Kf7 {[%emt 0:00:51]} 1/2-1/2

[Event "Reykjavik Open 2025"]
[Site "Reykjavik"]
[Date "2025.04.11"]
[Round "4.15"]
[White "Dushyant Sharma"]
[Black "Royal, Shreyas"]
[Result "0-1"]
[Annotator "ChessBase"]
[ECO "B33"]
[WhiteElo "2313"]
[BlackElo "2465"]
[PlyCount "94"]
[EventDate "2025.04.09"]
[EventType "swiss"]
[EventCountry "ISL"]
[SourceTitle "playchess.com"]
[Source "ChessBase"]
[SourceQuality "1"]
[TimeControl "40/5400+30:1800+30"]

1. e4 {[%emt 0:00:02]} c5 {[%emt 0:00:05]} 2. Nf3 {[%emt 0:00:05]} Nc6 {[%emt 0:00:04]} 3. d4 {[%emt 0:00:07]} cxd4 {[%emt 0:00:04]} 4. Nxd4 {[%emt 0:00:05]} Nf6 {[%emt 0:00:18]} 5. Nc3 {[%emt 0:00:11]} e5 {[%emt 0:00:25]} 6. Ndb5 {[%emt 0:01:46]} d6 {[%emt 0:00:06]} 7. Bg5 {[%emt 0:03:34]} a6 {[%emt 0:00:06]} 8. Na3 {[%emt 0:00:06]} b5 {[%emt 0:00:16]} 9. Bxf6 {[%emt 0:00:49]} gxf6 {[%emt 0:00:34]} 10. Nd5 {[%emt 0:00:19]} f5 {[%emt 0:00:17]} 11. c3 {[%emt 0:00:43]} Bg7 {[%emt 0:00:47]} 12. exf5 {[%emt 0:01:02]} Bxf5 {[%emt 0:00:16]} 13. Nc2 {[%emt 0:06:01]} Be6 {[%emt 0:06:28]} 14. a4 {[%emt 0:10:35]} Bxd5 {[%emt 0:14:48]} 15. Qxd5 {[%emt 0:00:20]} Ne7 {[%emt 0:00:04]} 16. Qf3 {[%emt 0:03:14]} O-O {[%emt 0:00:19]} 17. axb5 {[%emt 0:16:54]} axb5 {[%emt 0:04:16]} 18. Ra3 {[%emt 0:00:52]} Ra7 19. Rxa7 {[%emt 0:00:30]} Qb8 {[%emt 0:00:01]} 20. Ra8 Qxa8 {[%emt 0:01:00]} 21. Qxa8 {[%emt 0:00:39]} Rxa8 {[%emt 0:00:03]} 22. Kd1 {[%emt 0:24:32]} Nd5 {[%emt 0:00:06]} 23. Kc1 {[%emt 0:04:35]} Rb8 {[%emt 0:02:39]} 24. Nb4 {[%emt 0:10:53]} Bh6+ {[%emt 0:06:02]} 25. Kb1 {[%emt 0:02:13]} Nxb4 {[%emt 0:01:20]} 26. cxb4 {[%emt 0:00:05]} Bd2 {[%emt 0:00:18]} 27. Bd3 {[%emt 0:02:26]} Bxb4 {[%emt 0:04:33]} 28. Be4 {[%emt 0:01:13]} Bc5 {[%emt 0:01:36]} 29. f3 {[%emt 0:00:07]} Kg7 {[%emt 0:00:42]} 30. Kc2 {[%emt 0:02:39]} h5 {[%emt 0:01:54]} 31. Ra1 {[%emt 0:02:56]} Kf6 {[%emt 0:00:51]} 32. Bd5 {[%emt 0:04:16]} h4 {[%emt 0:00:44]} 33. g4 {[%emt 0:00:53]} Kg6 {[%emt 0:03:08]} 34. Kd3 {[%emt 0:01:40]} f5 {[%emt 0:00:29]} 35. h3 {[%emt 0:01:04]} Kg5 {[%emt 0:00:36]} 36. Be6 {[%emt 0:00:32]} fxg4 {[%emt 0:02:27]} 37. Bxg4 {[%emt 0:00:08]} Kf4 {[%emt 0:05:01]} 38. Ra6 {[%emt 0:00:24]} b4 {[%emt 0:00:51]} 39. b3 {[%emt 0:00:31]} Re8 {[%emt 0:00:05]} 40. Kc4 {[%emt 0:00:57]} Ke3 {[%emt 0:04:27]} 41. Ra1 {[%emt 0:30:30]} Rf8 {[%emt 0:30:45]} 42. Rd1 {[%emt 0:00:15]} Rf4+ {[%emt 0:00:46]} 43. Kd5 {[%emt 0:00:00]} Ke2 {[%emt 0:00:00]} 44. Rc1 {[%emt 0:00:00]} Rd4+ {[%emt 0:00:00]} 45. Kc6 {[%emt 0:00:00]} Kd2 {[%emt 0:00:00]} 46. Rf1 {[%emt 0:00:00]} Rf4 {[%emt 0:00:00]} 47. Ra1 {[%emt 0:00:00]} Kc2 {[%emt 0:00:00]} 0-1

[Event "Reykjavik Open 2025"]
[Site "Reykjavik"]
[Date "2025.04.11"]
[Round "4.16"]
[White "Hjartarson, Johann"]
[Black "Borne, Felix"]
[Result "1/2-1/2"]
[Annotator "ChessBase"]
[ECO "E53"]
[WhiteElo "2461"]
[BlackElo "2225"]
[PlyCount "102"]
[EventDate "2025.04.09"]
[EventType "swiss"]
[EventCountry "ISL"]
[SourceTitle "playchess.com"]
[Source "ChessBase"]
[SourceQuality "1"]
[TimeControl "40/5400+30:1800+30"]

1. d4 {[%emt 0:00:03]} Nf6 {[%emt 0:00:10]} 2. c4 {[%emt 0:00:07]} e6 {[%emt 0:00:09]} 3. Nc3 {[%emt 0:00:17]} Bb4 {[%emt 0:02:34]} 4. e3 {[%emt 0:00:11]} O-O {[%emt 0:00:09]} 5. Bd3 {[%emt 0:00:08]} d5 {[%emt 0:00:34]} 6. a3 {[%emt 0:00:14]} Bxc3+ {[%emt 0:00:39]} 7. bxc3 {[%emt 0:00:07]} dxc4 {[%emt 0:00:15]} 8. Bxc4 {[%emt 0:00:07]} c5 {[%emt 0:00:11]} 9. Nf3 {[%emt 0:00:07]} Qc7 {[%emt 0:00:22]} 10. Be2 {[%emt 0:00:23]} b6 {[%emt 0:02:47]} 11. O-O {[%emt 0:02:54]} Bb7 {[%emt 0:07:52]} 12. c4 {[%emt 0:00:26]} Rd8 {[%emt 0:09:30]} 13. Bb2 {[%emt 0:02:13]} cxd4 {[%emt 0:13:41]} 14. exd4 {[%emt 0:00:18]} Nbd7 {[%emt 0:02:09]} 15. Rc1 {[%emt 0:01:42]} Nf8 {[%emt 0:07:01]} 16. Re1 {[%emt 0:08:58]} Ng6 {[%emt 0:02:36]} 17. Qb3 {[%emt 0:03:08]} Rac8 {[%emt 0:02:06]} 18. Bf1 {[%emt 0:03:08]} Qf4 {[%emt 0:09:30]} 19. Qe3 {[%emt 0:18:35]} Bxf3 {[%emt 0:12:33]} 20. Qxf4 {[%emt 0:00:30]} Nxf4 {[%emt 0:00:04]} 21. gxf3 {[%emt 0:00:10]} Ng6 {[%emt 0:01:35]} 22. a4 {[%emt 0:09:02]} Nh4 {[%emt 0:02:18]} 23. Re3 {[%emt 0:00:22]} Nf5 {[%emt 0:01:17]} 24. Rd3 {[%emt 0:00:11]} Nh5 {[%emt 0:00:20]} 25. h3 {[%emt 0:12:36]} Nf4 {[%emt 0:03:28]} 26. Rdd1 {[%emt 0:00:07]} h5 {[%emt 0:01:47]} 27. Ra1 {[%emt 0:10:01]} Rd7 {[%emt 0:03:48]} 28. Bc1 {[%emt 0:11:15]} Ng6 {[%emt 0:02:30]} 29. d5 {[%emt 0:00:35]} exd5 {[%emt 0:01:01]} 30. cxd5 {[%emt 0:00:22]} Rc5 {[%emt 0:00:33]} 31. d6 {[%emt 0:01:38]} Rxd6 {[%emt 0:00:40]} 32. Rxd6 {[%emt 0:00:35]} Nxd6 {[%emt 0:00:02]} 33. Be3 {[%emt 0:00:22]} Rd5 {[%emt 0:02:44]} 34. Rc1 {[%emt 0:00:48]} Nh4 {[%emt 0:04:02]} 35. Be2 {[%emt 0:00:58]} Nhf5 {[%emt 0:00:43]} 36. Rc7 {[%emt 0:01:30]} Re5 {[%emt 0:05:02]} 37. Rxa7 {[%emt 0:02:37]} Nxe3 {[%emt 0:00:03]} 38. fxe3 {[%emt 0:01:02]} Rxe3 {[%emt 0:00:03]} 39. Kf2 {[%emt 0:00:17]} Re6 {[%emt 0:02:38]} 40. h4 {[%emt 0:04:00]} g6 {[%emt 0:00:29]} 41. Bd3 {[%emt 0:31:36]} Kg7 {[%emt 0:02:30]} 42. Ra6 {[%emt 0:00:00]} Nc8 {[%emt 0:07:53]} 43. Be4 {[%emt 0:00:00]} Ne7 {[%emt 0:01:27]} 44. Ra7 {[%emt 0:00:00]} Nf5 {[%emt 0:02:34]} 45. Bxf5 {[%emt 0:00:00]} gxf5 {[%emt 0:00:02]} 46. a5 {[%emt 0:00:00]} bxa5 {[%emt 0:00:16]} 47. Rxa5 {[%emt 0:00:00]} Kf6 {[%emt 0:00:09]} 48. Kg3 {[%emt 0:00:00]} Rb6 {[%emt 0:00:20]} 49. Rc5 {[%emt 0:00:00]} Re6 {[%emt 0:00:39]} 50. Kf4 {[%emt 0:00:00]} Kg6 {[%emt 0:00:14]} 51. Rxf5 {[%emt 0:00:00]} f6 {[%emt 0:00:31]} 1/2-1/2

[Event "Reykjavik Open 2025"]
[Site "Reykjavik"]
[Date "2025.04.11"]
[Round "4.17"]
[White "Alfaro Guillen, Jose Raul"]
[Black "Schouten, Mathias Lind"]
[Result "0-1"]
[Annotator "ChessBase"]
[ECO "D79"]
[WhiteElo "1956"]
[BlackElo "2279"]
[PlyCount "102"]
[EventDate "2025.04.09"]
[EventType "swiss"]
[EventCountry "ISL"]
[SourceTitle "playchess.com"]
[Source "ChessBase"]
[SourceQuality "1"]
[TimeControl "40/5400+30:1800+30"]

1. c4 {[%emt 0:00:05]} Nf6 {[%emt 0:00:25]} 2. Nc3 {[%emt 0:00:03]} g6 {[%emt 0:00:57]} 3. g3 {[%emt 0:00:19]} Bg7 {[%emt 0:00:07]} 4. Bg2 {[%emt 0:00:03]} O-O {[%emt 0:01:52]} 5. Nf3 {[%emt 0:00:22]} c6 {[%emt 0:01:21]} 6. O-O {[%emt 0:02:10]} d5 {[%emt 0:00:11]} 7. cxd5 {[%emt 0:00:33]} cxd5 {[%emt 0:00:09]} 8. d4 {[%emt 0:00:12]} Nc6 {[%emt 0:00:21]} 9. a3 {[%emt 0:10:36]} Ne4 {[%emt 0:07:05]} 10. Nxe4 {[%emt 0:08:11]} dxe4 {[%emt 0:00:07]} 11. Ng5 {[%emt 0:00:08]} Qxd4 {[%emt 0:00:52]} 12. Bxe4 {[%emt 0:15:36]} h6 {[%emt 0:13:11]} 13. Bxc6 {[%emt 0:00:15]} Qxd1 {[%emt 0:00:05]} 14. Rxd1 {[%emt 0:00:05]} bxc6 {[%emt 0:00:04]} 15. Ne4 {[%emt 0:01:45]} Bf5 {[%emt 0:00:30]} 16. Nc3 {[%emt 0:00:19]} Rab8 {[%emt 0:00:21]} 17. e4 {[%emt 0:07:08]} Be6 {[%emt 0:02:52]} 18. e5 {[%emt 0:17:51]} Bxe5 {[%emt 0:08:08]} 19. Bxh6 {[%emt 0:00:06]} Rfc8 {[%emt 0:00:18]} 20. Rd2 {[%emt 0:06:18]} Rxb2 {[%emt 0:00:30]} 21. Rxb2 {[%emt 0:00:02]} Bxc3 {[%emt 0:00:08]} 22. Rab1 {[%emt 0:00:29]} Bxb2 {[%emt 0:00:10]} 23. Rxb2 {[%emt 0:00:01]} Rd8 {[%emt 0:20:29]} 24. Rd2 {[%emt 0:19:14]} Rb8 {[%emt 0:00:38]} 25. Rc2 {[%emt 0:00:18]} Bd5 {[%emt 0:01:09]} 26. Be3 {[%emt 0:00:41]} Rb3 {[%emt 0:00:13]} 27. Bc1 {[%emt 0:01:10]} e5 {[%emt 0:08:03]} 28. Kf1 {[%emt 0:08:08]} Kg7 {[%emt 0:00:15]} 29. Ke2 {[%emt 0:00:23]} Kf6 {[%emt 0:00:18]} 30. h4 {[%emt 0:01:38]} a6 {[%emt 0:00:32]} 31. Kd2 {[%emt 0:00:48]} Ke6 {[%emt 0:05:23]} 32. Rc3 {[%emt 0:00:07]} Rb5 {[%emt 0:00:20]} 33. Ke3 {[%emt 0:00:06]} f5 {[%emt 0:04:29]} 34. f3 {[%emt 0:00:26]} Rb1 {[%emt 0:05:12]} 35. g4 {[%emt 0:01:19]} f4+ {[%emt 0:00:24]} 36. Ke2 {[%emt 0:00:49]} Kd6 {[%emt 0:02:26]} 37. Bd2 {[%emt 0:00:36]} c5 {[%emt 0:00:43]} 38. h5 {[%emt 0:00:28]} gxh5 {[%emt 0:00:29]} 39. gxh5 {[%emt 0:00:01]} Rh1 {[%emt 0:00:16]} 40. Be1 {[%emt 0:01:01]} Rxh5 {[%emt 0:00:25]} 41. Bf2 {[%emt 0:30:02]} c4 {[%emt 0:30:09]} 42. Kf1 {[%emt 0:00:00]} Rh1+ {[%emt 0:00:00]} 43. Kg2 {[%emt 0:00:00]} Rb1 {[%emt 0:00:00]} 44. Bh4 {[%emt 0:00:00]} Rb2+ {[%emt 0:00:00]} 45. Kh3 {[%emt 0:00:00]} Rb3 {[%emt 0:00:00]} 46. Be1 {[%emt 0:00:00]} Rxc3 {[%emt 0:00:00]} 47. Bxc3 {[%emt 0:00:00]} Bxf3 {[%emt 0:00:00]} 48. Kh4 {[%emt 0:00:00]} Kd5 {[%emt 0:00:00]} 49. Kg5 {[%emt 0:00:00]} Ke4 {[%emt 0:00:00]} 50. Kf6 {[%emt 0:00:00]} Bd1 {[%emt 0:00:00]} 51. Bxe5 {[%emt 0:00:00]} f3 {[%emt 0:00:00]} 0-1

[Event "Reykjavik Open 2025"]
[Site "Reykjavik"]
[Date "2025.04.11"]
[Round "4.18"]
[White "Nguyen, Paul"]
[Black "Nayak Rajesh"]
[Result "1-0"]
[Annotator "ChessBase"]
[ECO "E73"]
[WhiteElo "1936"]
[BlackElo "2277"]
[PlyCount "95"]
[EventDate "2025.04.09"]
[EventType "swiss"]
[EventCountry "ISL"]
[SourceTitle "playchess.com"]
[Source "ChessBase"]
[SourceQuality "1"]
[TimeControl "40/5400+30:1800+30"]

1. d4 {[%emt 0:00:02]} Nf6 {[%emt 0:01:02]} 2. c4 {[%emt 0:00:07]} g6 {[%emt 0:00:40]} 3. Nc3 {[%emt 0:00:08]} Bg7 {[%emt 0:01:08]} 4. e4 {[%emt 0:00:05]} d6 {[%emt 0:00:09]} 5. Be2 {[%emt 0:00:06]} Na6 {[%emt 0:06:13]} 6. Be3 {[%emt 0:02:14]} c5 {[%emt 0:03:25]} 7. d5 {[%emt 0:00:11]} e6 {[%emt 0:00:12]} 8. Nf3 {[%emt 0:00:39]} exd5 {[%emt 0:01:13]} 9. cxd5 {[%emt 0:00:10]} O-O {[%emt 0:01:01]} 10. Nd2 {[%emt 0:00:22]} Nc7 {[%emt 0:02:59]} 11. a4 {[%emt 0:00:54]} Nfe8 {[%emt 0:06:12]} 12. Nc4 {[%emt 0:20:11]} f5 {[%emt 0:03:56]} 13. exf5 {[%emt 0:04:50]} Bxf5 {[%emt 0:00:20]} 14. O-O {[%emt 0:00:21]} Na6 {[%emt 0:00:55]} 15. Rc1 {[%emt 0:05:05]} Nb4 {[%emt 0:03:43]} 16. Nb5 {[%emt 0:01:36]} b6 {[%emt 0:05:00]} 17. Bf4 {[%emt 0:05:31]} Be4 {[%emt 0:06:47]} 18. Bg3 {[%emt 0:07:14]} Bxd5 {[%emt 0:13:56]} 19. Ncxd6 {[%emt 0:07:11]} Nxd6 {[%emt 0:00:25]} 20. Nxd6 {[%emt 0:01:39]} Qf6 {[%emt 0:04:36]} 21. Bc4 {[%emt 0:01:58]} Bxc4 {[%emt 0:00:12]} 22. Nxc4 {[%emt 0:00:29]} Rad8 {[%emt 0:00:14]} 23. Qg4 {[%emt 0:02:27]} h5 {[%emt 0:08:02]} 24. Qe4 {[%emt 0:01:29]} Rfe8 {[%emt 0:01:14]} 25. Qb1 {[%emt 0:01:01]} h4 {[%emt 0:03:04]} 26. Bc7 {[%emt 0:01:48]} Rd7 {[%emt 0:01:42]} 27. Be5 {[%emt 0:00:28]} Rxe5 {[%emt 0:02:45]} 28. Nxe5 {[%emt 0:01:02]} Qxe5 {[%emt 0:00:07]} 29. Qxg6 {[%emt 0:00:15]} Rd6 {[%emt 0:00:33]} 30. Qg4 {[%emt 0:00:28]} Qd4 {[%emt 0:02:37]} 31. Qh5 {[%emt 0:00:52]} Rd5 {[%emt 0:02:37]} 32. Qe8+ {[%emt 0:00:14]} Kh7 {[%emt 0:00:01]} 33. Rce1 {[%emt 0:02:01]} Re5 {[%emt 0:05:01]} 34. Qf7 {[%emt 0:00:31]} Qxb2 {[%emt 0:02:03]} 35. Re3 {[%emt 0:01:36]} Qd4 {[%emt 0:03:41]} 36. Rh3 {[%emt 0:01:23]} Qg4 {[%emt 0:00:55]} 37. f3 {[%emt 0:00:45]} Qd4+ {[%emt 0:00:34]} 38. Kh1 {[%emt 0:00:06]} Nd5 {[%emt 0:06:35]} 39. f4 {[%emt 0:00:58]} Qf2 {[%emt 0:02:08]} 40. Rf3 {[%emt 0:01:27]} Qd4 {[%emt 0:01:46]} 41. fxe5 {[%emt 0:30:09]} Ne3 {[%emt 0:02:01]} 42. Qh5+ {[%emt 0:00:00]} Kg8 {[%emt 0:00:05]} 43. Rf8+ {[%emt 0:00:00]} Bxf8 {[%emt 0:00:07]} 44. Qf7+ {[%emt 0:00:00]} Kh8 {[%emt 0:00:05]} 45. Qxf8+ {[%emt 0:00:00]} Kh7 {[%emt 0:00:06]} 46. Rf7+ {[%emt 0:00:00]} Kg6 {[%emt 0:00:06]} 47. Rg7+ {[%emt 0:00:00]} Kh5 {[%emt 0:00:06]} 48. Qh8# {[%emt 0:00:00]} 1-0

[Event "Reykjavik Open 2025"]
[Site "Reykjavik"]
[Date "2025.04.11"]
[Round "4.19"]
[White "Valtysson, Thor"]
[Black "Nissinen, Niilo Man"]
[Result "0-1"]
[Annotator "ChessBase"]
[ECO "D02"]
[WhiteElo "1929"]
[BlackElo "2268"]
[PlyCount "66"]
[EventDate "2025.04.09"]
[EventType "swiss"]
[EventCountry "ISL"]
[SourceTitle "playchess.com"]
[Source "ChessBase"]
[SourceQuality "1"]
[TimeControl "40/5400+30:1800+30"]

1. d4 {[%emt 0:00:04]} Nf6 {[%emt 0:00:10]} 2. Nf3 {[%emt 0:00:10]} d5 {[%emt 0:00:28]} 3. Bf4 {[%emt 0:00:24]} e6 {[%emt 0:00:22]} 4. e3 {[%emt 0:00:19]} c5 {[%emt 0:00:14]} 5. c3 {[%emt 0:00:10]} Nc6 {[%emt 0:00:09]} 6. Nbd2 {[%emt 0:01:56]} Nh5 {[%emt 0:00:25]} 7. Bg5 {[%emt 0:01:37]} f6 {[%emt 0:01:13]} 8. Bh4 {[%emt 0:00:29]} g6 {[%emt 0:00:16]} 9. Bd3 {[%emt 0:04:03]} cxd4 {[%emt 0:00:31]} 10. cxd4 {[%emt 0:01:34]} Bd6 {[%emt 0:00:14]} 11. O-O {[%emt 0:02:42]} O-O {[%emt 0:00:17]} 12. a3 {[%emt 0:04:06]} Qe7 {[%emt 0:09:09]} 13. Rc1 {[%emt 0:06:10]} Kh8 {[%emt 0:02:09]} 14. Re1 {[%emt 0:05:44]} g5 {[%emt 0:02:14]} 15. Bg3 {[%emt 0:06:11]} Nxg3 {[%emt 0:00:29]} 16. hxg3 {[%emt 0:00:33]} g4 {[%emt 0:02:02]} 17. Nh2 {[%emt 0:01:50]} f5 {[%emt 0:01:52]} 18. Nhf1 {[%emt 0:03:10]} Qg5 {[%emt 0:07:27]} 19. f4 {[%emt 0:14:05]} gxf3 {[%emt 0:03:15]} 20. Qxf3 {[%emt 0:02:12]} Bd7 {[%emt 0:03:20]} 21. Kf2 {[%emt 0:09:02]} Be8 {[%emt 0:04:25]} 22. Be2 {[%emt 0:01:23]} Rg8 {[%emt 0:04:38]} 23. Kg1 {[%emt 0:04:13]} Rd8 {[%emt 0:03:05]} 24. Qf2 {[%emt 0:04:33]} Rd7 {[%emt 0:02:23]} 25. Nf3 {[%emt 0:02:30]} Qf6 {[%emt 0:05:00]} 26. N3h2 {[%emt 0:11:08]} Rdg7 {[%emt 0:11:48]} 27. Bf3 {[%emt 0:00:53]} Qh6 {[%emt 0:02:53]} 28. Qe2 {[%emt 0:05:39]} Bxg3 {[%emt 0:15:40]} 29. Nxg3 {[%emt 0:00:15]} Rxg3 {[%emt 0:00:05]} 30. Nf1 {[%emt 0:01:56]} Rh3 {[%emt 0:04:34]} 31. g3 {[%emt 0:01:41]} Bh5 {[%emt 0:00:49]} 32. Kf2 {[%emt 0:03:11]} Qg5 {[%emt 0:02:00]} 33. Bxh5 {[%emt 0:02:26]} Rxg3 {[%emt 0:02:11]} 0-1

[Event "Reykjavik Open 2025"]
[Site "Reykjavik"]
[Date "2025.04.11"]
[Round "4.20"]
[White "Briem, Benedikt"]
[Black "Bernhard, Sebastian"]
[Result "1-0"]
[Annotator "ChessBase"]
[ECO "E16"]
[WhiteElo "2249"]
[BlackElo "1914"]
[PlyCount "79"]
[EventDate "2025.04.09"]
[EventType "swiss"]
[EventCountry "ISL"]
[SourceTitle "playchess.com"]
[Source "ChessBase"]
[SourceQuality "1"]
[TimeControl "40/5400+30:1800+30"]

1. d4 {[%emt 0:00:02]} Nf6 {[%emt 0:14:27]} 2. c4 {[%emt 0:00:32]} e6 {[%emt 0:00:01]} 3. Nf3 {[%emt 0:00:07]} Bb4+ {[%emt 0:00:12]} 4. Nbd2 {[%emt 0:00:07]} b6 {[%emt 0:00:27]} 5. g3 {[%emt 0:00:06]} Bb7 {[%emt 0:00:15]} 6. Bg2 {[%emt 0:00:06]} O-O {[%emt 0:00:14]} 7. O-O {[%emt 0:00:05]} a5 {[%emt 0:00:10]} 8. a3 {[%emt 0:05:11]} Bxd2 {[%emt 0:01:48]} 9. Qxd2 {[%emt 0:00:43]} a4 {[%emt 0:00:20]} 10. Qf4 {[%emt 0:03:30]} d6 {[%emt 0:05:43]} 11. Re1 {[%emt 0:03:45]} Be4 {[%emt 0:11:36]} 12. g4 {[%emt 0:03:29]} d5 {[%emt 0:02:53]} 13. Bd2 {[%emt 0:05:03]} Nbd7 {[%emt 0:11:06]} 14. Rac1 {[%emt 0:06:25]} c5 {[%emt 0:04:29]} 15. cxd5 {[%emt 0:03:58]} exd5 {[%emt 0:00:31]} 16. Bc3 {[%emt 0:00:43]} Qb8 {[%emt 0:03:52]} 17. Qxb8 {[%emt 0:06:12]} Raxb8 {[%emt 0:01:06]} 18. g5 {[%emt 0:01:42]} Nh5 {[%emt 0:07:36]} 19. Bh3 {[%emt 0:05:47]} Rb7 {[%emt 0:01:38]} 20. Bxd7 {[%emt 0:11:07]} Rxd7 {[%emt 0:01:08]} 21. Ne5 {[%emt 0:00:21]} Rb7 {[%emt 0:01:10]} 22. f3 {[%emt 0:00:36]} Bf5 {[%emt 0:03:48]} 23. e4 {[%emt 0:04:09]} Be6 {[%emt 0:00:44]} 24. Rcd1 {[%emt 0:12:03]} cxd4 {[%emt 0:01:27]} 25. Rxd4 {[%emt 0:00:46]} f6 {[%emt 0:12:06]} 26. gxf6 {[%emt 0:01:53]} gxf6 {[%emt 0:02:06]} 27. Nd3 {[%emt 0:06:26]} dxe4 {[%emt 0:03:16]} 28. Rexe4 {[%emt 0:01:14]} Bf5 {[%emt 0:04:01]} 29. Rh4 {[%emt 0:01:44]} Ng7 {[%emt 0:01:40]} 30. Nb4 {[%emt 0:01:35]} Ne6 {[%emt 0:02:14]} 31. Rd6 {[%emt 0:00:49]} Ng5 {[%emt 0:00:31]} 32. Kf2 {[%emt 0:02:26]} Nh3+ {[%emt 0:01:29]} 33. Kf1 {[%emt 0:01:42]} Rd7 {[%emt 0:00:47]} 34. Rxd7 {[%emt 0:00:39]} Bxd7 {[%emt 0:00:01]} 35. Nd5 {[%emt 0:00:37]} Bb5+ {[%emt 0:00:56]} 36. Kg2 {[%emt 0:00:19]} Ng5 {[%emt 0:00:25]} 37. Nxf6+ {[%emt 0:00:58]} Kf7 {[%emt 0:00:15]} 38. Rh5 {[%emt 0:02:18]} h6 {[%emt 0:01:17]} 39. h4 {[%emt 0:00:40]} Ne6 {[%emt 0:00:58]} 40. Rxb5 {[%emt 0:00:09]} 1-0

[Event "Reykjavik Open 2025"]
[Site "Reykjavik"]
[Date "2025.04.11"]
[Round "4.21"]
[White "Maton, Emily"]
[Black "Priansh Das"]
[Result "0-1"]
[Annotator "ChessBase"]
[ECO "B07"]
[WhiteElo "1912"]
[BlackElo "2262"]
[PlyCount "100"]
[EventDate "2025.04.09"]
[EventType "swiss"]
[EventCountry "ISL"]
[SourceTitle "playchess.com"]
[Source "ChessBase"]
[SourceQuality "1"]
[TimeControl "40/5400+30:1800+30"]

1. d4 {[%emt 0:00:04]} Nf6 {[%emt 0:00:06]} 2. Bf4 {[%emt 0:00:04]} g6 {[%emt 0:00:06]} 3. Nc3 {[%emt 0:00:05]} Bg7 {[%emt 0:00:07]} 4. e4 {[%emt 0:00:05]} d6 {[%emt 0:00:03]} 5. Qd2 {[%emt 0:00:06]} O-O {[%emt 0:02:34]} 6. O-O-O {[%emt 0:00:07]} a6 {[%emt 0:00:10]} 7. f3 {[%emt 0:02:03]} b5 {[%emt 0:03:28]} 8. Bh6 {[%emt 0:02:30]} Nc6 {[%emt 0:05:36]} 9. h4 {[%emt 0:07:32]} e5 {[%emt 0:09:48]} 10. d5 {[%emt 0:05:05]} Nd4 {[%emt 0:12:15]} 11. Nce2 {[%emt 0:06:07]} Nxe2+ {[%emt 0:03:26]} 12. Nxe2 {[%emt 0:06:54]} Bxh6 {[%emt 0:01:37]} 13. Qxh6 {[%emt 0:00:09]} Kh8 {[%emt 0:00:03]} 14. h5 {[%emt 0:04:03]} Ng8 {[%emt 0:00:06]} 15. Qe3 {[%emt 0:00:44]} g5 {[%emt 0:03:31]} 16. g3 {[%emt 0:03:03]} Nh6 {[%emt 0:01:08]} 17. f4 {[%emt 0:03:46]} f6 {[%emt 0:00:52]} 18. Bg2 {[%emt 0:01:45]} Qe7 {[%emt 0:00:57]} 19. Ng1 {[%emt 0:05:30]} Rg8 {[%emt 0:02:57]} 20. Bh3 {[%emt 0:02:24]} Bd7 {[%emt 0:03:22]} 21. fxe5 {[%emt 0:01:52]} fxe5 {[%emt 0:00:45]} 22. Bxd7 {[%emt 0:00:41]} Qxd7 {[%emt 0:00:02]} 23. Nh3 {[%emt 0:01:15]} Raf8 {[%emt 0:01:13]} 24. Nf2 {[%emt 0:07:00]} Rg7 {[%emt 0:30:45]} 25. Nd3 {[%emt 0:04:40]} Qg4 {[%emt 0:00:36]} 26. Rdf1 {[%emt 0:06:15]} Rgf7 {[%emt 0:01:04]} 27. Rxf7 {[%emt 0:00:43]} Rxf7 {[%emt 0:00:01]} 28. Nf2 {[%emt 0:08:30]} Qf3 {[%emt 0:00:06]} 29. Qxf3 {[%emt 0:00:13]} Rxf3 {[%emt 0:00:05]} 30. Nd3 {[%emt 0:00:07]} a5 {[%emt 0:03:50]} 31. Rg1 {[%emt 0:00:42]} Ng4 {[%emt 0:02:34]} 32. Kd2 {[%emt 0:01:26]} Kg7 {[%emt 0:00:06]} 33. Rg2 {[%emt 0:03:21]} Ne3 {[%emt 0:02:09]} 34. Rg1 {[%emt 0:04:17]} Rxg3 {[%emt 0:00:52]} 35. Rxg3 {[%emt 0:01:27]} Nf1+ {[%emt 0:00:05]} 36. Ke2 {[%emt 0:00:08]} Nxg3+ {[%emt 0:00:03]} 37. Kf3 {[%emt 0:00:05]} Nxh5 {[%emt 0:00:05]} 38. b3 {[%emt 0:01:06]} Nf6 {[%emt 0:00:31]} 39. a4 {[%emt 0:00:34]} bxa4 {[%emt 0:00:08]} 40. bxa4 {[%emt 0:00:03]} h5 {[%emt 0:00:13]} 41. c4 {[%emt 0:30:43]} g4+ {[%emt 0:30:14]} 42. Ke3 {[%emt 0:00:16]} h4 {[%emt 0:00:06]} 43. c5 {[%emt 0:00:08]} h3 {[%emt 0:00:19]} 44. cxd6 {[%emt 0:00:20]} cxd6 {[%emt 0:00:09]} 45. Nf2 {[%emt 0:00:35]} Kg6 {[%emt 0:00:15]} 46. Nh1 {[%emt 0:00:07]} Nh5 {[%emt 0:00:08]} 47. Kf2 {[%emt 0:00:51]} Kg5 {[%emt 0:00:09]} 48. Ke3 {[%emt 0:00:16]} Kh4 {[%emt 0:00:14]} 49. Kf2 {[%emt 0:00:07]} g3+ {[%emt 0:00:07]} 50. Kg1 {[%emt 0:00:17]} Nf4 {[%emt 0:00:09]} 0-1